Cogmind - Beta 9.2 *** ADVENTURER MODE // 2019.11.19 @ 14:10:55 Player: sideriver81 Result: Self-destructed Performance ------------- Evolutions (4) 2000 Regions Visited (6) 1200 Robots Destroyed (29) 145 Value Destroyed (678) 678 Prototype IDs (11) 220 Alien Tech Used (0) 0 Bonus (0) 0 TOTAL SCORE: 4243 Bonus ------- None Cogmind --------- Core Integrity 813/850 Matter 248/300 Energy 160/160 System Corruption 0% Temperature Cool (0) Movement Core (450) Ox8 Location -6/Factory Parts ------- > --- POWER (2) -------- Light Nuclear Core > --- PROPULSION (6) --- (None) > --- UTILITY (5) ------ Large Storage Unit Advanced Sensor Array Advanced Signal Interpreter > --- WEAPON (2) ------- Great Maul > --- INVENTORY (10) --- Light Nuclear Core Light Nuclear Core Core Analyzer Improved Medium Armor Plating Mass Driver Grenade Launcher Remote Datajack Great Maul Great Maul Peak State ------------ > --- POWER ------------ Light Nuclear Core Light Nuclear Core > --- PROPULSION ------- Airjet Airjet Airjet Airjet Airjet > --- UTILITY ---------- Improved Cooling System Large Storage Unit Advanced Sensor Array Hardened Medium Armor Plating > --- WEAPON ----------- Advanced EMP Blaster Great Maul > --- INVENTORY -------- Light Nuclear Core Airjet Airjet Gravmag System Medium Storage Unit Medium Reactive Plating Mass Driver Mass Driver Grenade Launcher Great Maul [Rating: 42] Favorites ----------- Power Light Nuclear Core Engine Light Ion Engine Power Core Light Nuclear Core Propulsion Airjet Leg Aluminum Leg Wheel Compact Wheel Hover Unit Airjet Flight Unit Flight Unit Utility Large Storage Unit Device Improved Cooling System Storage Large Storage Unit Processor Advanced Targeting Computer Protection Light Armor Plating Weapon Great Maul Energy Gun Improved Medium Laser Ballistic Gun Light Assault Rifle Launcher Grenade Launcher Impact Weapon Great Maul Build | -11 -10 -9 -8 -7 -7 -6 ------- Run | Scr Mat Mat Mat Fac Sto Fac Slots Evolved 8 | . . 2 2 2 . 2 Power 1 | . . . . 1 . . Propulsion 4 | . . 1 1 1 . 1 Utility 3 | . . 1 1 . . 1 Weapon . | . . . . . . . Parts Attached 43 | . 6 9 14 7 3 4 Power 5 | . . 2 1 1 . 1 Engine 1 | . . 1 . . . . Core 4 | . . 1 1 1 . 1 Reactor . | . . . . . . . Propulsion 16 | . 2 2 5 2 3 2 Treads . | . . . . . . . Leg 1 | . . 1 . . . . Wheel 4 | . 2 1 . . . 1 Hover 10 | . . . 4 2 3 1 Flight 1 | . . . 1 . . . Utility 10 | . 2 2 3 2 . 1 Device 3 | . . . 3 . . . Storage 1 | . 1 . . . . . Processor 2 | . . 1 . . . 1 Hackware . | . . . . . . . Protection 4 | . 1 1 . 2 . . Artifact . | . . . . . . . Weapon 12 | . 2 3 5 2 . . Energy Gun 3 | . . 1 2 . . . Energy Cannon . | . . . . . . . Ballistic Gun 3 | . 1 2 . . . . Ballistic Cannon . | . . . . . . . Launcher 3 | . 1 . 1 1 . . Special Weapon . | . . . . . . . Impact Weapon 3 | . . . 2 1 . . Slashing Weapon . | . . . . . . . Piercing Weapon . | . . . . . . . Special Melee Weapon . | . . . . . . . Unidentified Prototypes 2 | . . 1 . 1 . . Parts Lost 11 | . . . 1 . 6 4 Power . | . . . . . . . Propulsion 8 | . . . . . 5 3 Utility 3 | . . . 1 . 1 1 Weapon . | . . . . . . . Highest Loss Streak 6 | . . . 1 . 6 3 Average Slot Usage (%) 92 | . 94 92 98 96 92 54 Engine 3 | . 14 4 6 . . . Core 8 | . . 6 3 15 13 6 Leg 1 | . 4 6 . . . . Wheel 9 | . 23 23 10 . . . Hover 20 | . . . 23 37 33 17 Device 9 | . . . 11 15 15 13 Storage 9 | . 14 11 9 7 7 6 Processor 2 | . . 7 6 . . 3 Protection 7 | . 9 11 9 5 6 . Energy Gun 2 | . . 1 9 . . . Ballistic Gun 7 | . 25 20 . . . . Impact Weapon 7 | . . . 7 14 13 6 Naked Turns . | . . . . . . . Heaviest Build 45 | 9 26 33 36 45 45 28 Greatest Support 48 | 20 32 48 48 45 47 29 Greatest Overweight (x) 2 | . 1 . 1 . 1 2 Average Overweight (x) . | . . . . . . . Largest Inventory Capacity 10 | 6 10 10 10 10 10 10 Average Capacity 9 | 6 9 10 10 10 10 10 Most Carried 10 | 6 9 10 10 10 10 9 Average Carried 9 | 6 7 9 9 9 9 9 Final Capacity 10 | 6 10 10 10 10 10 10 Final Carried 10 | 6 9 10 9 10 9 9 Class Distribution -------------------- 97% | Mutant Dominant Class ---------------- Mutant | -10/Materials Mutant | -9/Materials Mutant | -8/Materials Mutant | -7/Factory Mutant | -7/Storage Mutant | -6/Factory Resources | -11 -10 -9 -8 -7 -7 -6 ----------- Run | Scr Mat Mat Mat Fac Sto Fac Matter Collected 726 | 200 15 257 216 24 14 . Remotely . | . . . . . . . Salvage Created 810 | . 53 404 315 24 14 . Parts 48 | . 11 27 10 . . . Haulers Intercepted 1 | . . 1 . . . . Recyclers Shooed . | . . . . . . . Parts Field Recycled . | . . . . . . . Retrieved Matter . | . . . . . . . Parts Self-Destructed . | . . . . . . . Prevented . | . . . . . . . Kills | -11 -10 -9 -8 -7 -7 -6 ------- Run | Scr Mat Mat Mat Fac Sto Fac Combat Hostiles Destroyed 20 | . 6 6 8 . . . Guns 9 | . 1 6 2 . . . AOE 8 | . 5 . 3 . . . Classes Destroyed 8 | . 2 5 . . 1 . Worker 2 | . . 2 . . . . Hauler 1 | . . 1 . . . . Recycler 1 | . . 1 . . . . Operator 1 | . . . . . 1 . Watcher 4 | . 2 . 1 1 . . Swarmer 9 | . 6 . 3 . . . Grunt 7 | . . 3 4 . . . Sentry 4 | . . 3 1 . . . Best Kill Streak 9 | . 8 9 4 1 1 . Combat Bots Only 6 | . 6 5 3 . . . Max Kills in Single Turn 5 | . 5 1 2 1 1 . Gunslinging . | . . . . . . . Exploded 3 | . 3 . 2 . . . Melee . | . . . . . . . Uniques/NPCs Destroyed . | . . . . . . . Combat | -11 -10 -9 -8 -7 -7 -6 -------- Run | Scr Mat Mat Mat Fac Sto Fac Damage Taken 1640 | . 51 359 269 9 768 184 Core 281 | . 14 66 48 . 116 37 Absorbed by Shields 25 | . . . . . 25 . Core Remaining (%) 90 | 100 94 83 91 . 83 . Volleys Fired 39 | . 4 22 13 . . . Largest 2 | . 2 2 2 . . . Hottest 112 | . 50 46 112 . . . Shots Fired 75 | . 7 44 24 . . . Gun 70 | . 4 44 22 . . . Cannon . | . . . . . . . Launcher 5 | . 3 . 2 . . . Special . | . . . . . . . Kinetic 48 | . 4 44 . . . . Thermal 22 | . . . 22 . . . Explosive 5 | . 3 . 2 . . . Electromagnetic . | . . . . . . . Robot Hit Streak 20 | . 1 20 20 . . . Robot Miss Streak 1 | . 1 1 1 . . . Penetration Max . | . . . . . . . Secondary Targets . | . . . . . . . Shots Hit Robots 90 | . 2 39 39 2 8 . Core Hits 36 | . 9 17 9 . 1 . Critical Hits . | . . . . . . . Critical Kills . | . . . . . . . Critical Parts Destroyed . | . . . . . . . Melee Attacks 31 | . . . 19 2 10 . Impact 31 | . . . 19 2 10 . Slashing . | . . . . . . . Piercing . | . . . . . . . Sneak Attacks . | . . . . . . . Combat Hostiles . | . . . . . . . Follow-up Attacks 6 | . . . 3 . 3 . Damage Inflicted 2394 | . 394 633 1096 64 207 . Guns 974 | . 15 633 326 . . . Cannons . | . . . . . . . Explosions 562 | . 379 . 183 . . . Melee 858 | . . . 587 64 207 . Ramming . | . . . . . . . Kinetic 648 | . 15 633 . . . . Thermal 326 | . . . 326 . . . Explosive 562 | . 379 . 183 . . . Electromagnetic . | . . . . . . . Impact 858 | . . . 587 64 207 . Slashing . | . . . . . . . Piercing . | . . . . . . . Highest Corruption . | . . . . . . . Average Corruption . | . . . . . . . Corruption Purged . | . . . . . . . Overload Shots . | . . . . . . . Overflow Damage 190 | . 17 . 132 8 33 . Projectiles . | . . . . . . . Explosions 21 | . 17 . 4 . . . Melee 169 | . . . 128 8 33 . Knockbacks 4 | . . . 4 . . . Impact 3 | . . . 3 . . . Kinetic . | . . . . . . . Secondary 1 | . . . 1 . . . Self-Inflicted Damage . | . . . . . . . Shots . | . . . . . . . Rammed . | . . . . . . . Targets Rammed . | . . . . . . . Kicked . | . . . . . . . Crushed . | . . . . . . . Highest Temperature 33 | . 19 33 6 . . . Average Temperature 16 | . 11 18 4 . . . Received Heat Transfer 777 | . . 180 162 . 399 36 Siege Activations . | . . . . . . . Robots Corrupted . | . . . . . . . Combat Hostiles . | . . . . . . . Parts Fried 4 | . . . 2 1 1 . Impact Corruptions 12 | . . . 8 1 3 . Robots Melted . | . . . . . . . Combat Hostiles . | . . . . . . . Parts Melted 2 | . . . 2 . . . Heat Transferred 703 | . . . 703 . . . Parts Sabotaged . | . . . . . . . Parts Stolen . | . . . . . . . Parts Stripped . | . . . . . . . Power Chain Reactions . | . . . . . . . Missiles Intercepted . | . . . . . . . Alert | -11 -10 -9 -8 -7 -7 -6 ------- Run | Scr Mat Mat Mat Fac Sto Fac Peak Influence 393 | . 172 303 393 152 89 39 Average Influence 110 | . 64 152 256 59 45 19 Maximum Alert Level 1 | . . 1 1 . . . Low Security (%) 80 | 100 100 72 23 100 100 100 Level 1 19 | . . 27 76 . . . Level 2 . | . . . . . . . Level 3 . | . . . . . . . Level 4 . | . . . . . . . Level 5 . | . . . . . . . High Security . | . . . . . . . Max Security . | . . . . . . . Squads Dispatched 5 | . . 1 3 . 1 . Investigation 1 | . . . 1 . . . Extermination . | . . . . . . . Reinforcement 2 | . . 1 1 . . . Assault . | . . . . . . . Garrison 2 | . . . 1 . 1 . Intercept . | . . . . . . . Construction Impeded . | . . . . . . . Haulers Reinforced . | . . . . . . . Stealth | -11 -10 -9 -8 -7 -7 -6 --------- Run | Scr Mat Mat Mat Fac Sto Fac Distress Signals 5 | . 2 1 . . 2 . Communications Jammed . | . . . . . . . Distress Signals . | . . . . . . . Times Spotted 61 | . 8 11 18 4 14 6 Peak Tracking Total 13 | . 9 4 5 4 13 6 Tactical Retreats 8 | . . 1 3 1 2 1 Traps | -11 -10 -9 -8 -7 -7 -6 ------- Run | Scr Mat Mat Mat Fac Sto Fac Traps Triggered 4 | . . 1 . . 2 1 Indirectly . | . . . . . . . Trap Hack Attempts . | . . . . . . . Triggered . | . . . . . . . Disarmed 4 | . . . . . 4 . Reprogrammed . | . . . . . . . Reused . | . . . . . . . Traps Extracted . | . . . . . . . Installed . | . . . . . . . Triggered 1 | . . . 1 . . . Machines | -11 -10 -9 -8 -7 -7 -6 ---------- Run | Scr Mat Mat Mat Fac Sto Fac Machines Disabled 1 | . . . . . 1 . Max in Single Turn 1 | . . . . . 1 . Garrison Access 1 | . . . 1 . . . Machines Sabotaged . | . . . . . . . Garrisons Compromised . | . . . . . . . Overloaded Fab Kills . | . . . . . . . Fab Network Shutdowns . | . . . . . . . Hacking | -11 -10 -9 -8 -7 -7 -6 --------- Run | Scr Mat Mat Mat Fac Sto Fac Machines Accessed 17 | . 3 . 2 7 3 2 Terminals 12 | . 3 . 1 3 3 2 Fabricators 2 | . . . . 2 . . Repair Stations 1 | . . . . 1 . . Recycling Units 1 | . . . . 1 . . Scanalyzers . | . . . . . . . Garrison Access 1 | . . . 1 . . . Total Hacks 39 | . 11 . 4 11 8 5 Successful 25 | . 8 . 2 7 6 2 Failed 14 | . 3 . 2 4 2 3 Catastrophic 2 | . . . . 1 1 . Database Lockouts . | . . . . . . . Manual 13 | . 6 . . 2 4 1 Terminals 30 | . 11 . 2 4 8 5 Fabricators 3 | . . . . 3 . . Repair Stations 2 | . . . . 2 . . Recycling Units 2 | . . . . 2 . . Scanalyzers . | . . . . . . . Garrison Access 2 | . . . 2 . . . Terminal Hacks 15 | . 5 . 1 3 4 2 Part Schematic 2 | . . . . 1 . 1 Robot Analysis 1 | . . . 1 . . . Prototype ID Bank 5 | . 3 . . 1 . 1 Open Door 1 | . . . . . 1 . Unreport Threat 2 | . . . . 1 1 . Locate Traps 3 | . 2 . . . 1 . Disarm Traps 1 | . . . . . 1 . Fabricator Hacks 1 | . . . . 1 . . Build 1 | . . . . 1 . . Repair Station Hacks 2 | . . . . 2 . . Scan Component 1 | . . . . 1 . . Repair 1 | . . . . 1 . . Recycling Unit Hacks . | . . . . . . . Scanalyzer . | . . . . . . . Garrison Access Hacks 1 | . . . 1 . . . Seal Access 1 | . . . 1 . . . Unauthorized Hacks 14 | . 7 . . 3 4 . Terminals 5 | . 3 . . . 2 . Botnet 5 | . 3 . . . 2 . Fabricators 1 | . . . . 1 . . Report 1 | . . . . 1 . . Repair Stations . | . . . . . . . Recycling Units . | . . . . . . . Scanalyzers . | . . . . . . . Garrison Access . | . . . . . . . Data Cores Recovered . | . . . . . . . Used . | . . . . . . . Hacking Detections 14 | . 2 . 1 6 3 2 Full Trace Events . | . . . . . . . Feedback Events . | . . . . . . . Feedback Blocked . | . . . . . . . Robot Schematics Acquired . | . . . . . . . Robots Built . | . . . . . . . Matter . | . . . . . . . Time . | . . . . . . . Total Robot Build Rating . | . . . . . . . Part Schematics Acquired 2 | . . . . 1 . 1 Parts Built 2 | . . . . 2 . . Matter 212 | . . . . 212 . . Time 35 | . . . . 35 . . Total Part Build Rating 12 | . . . . 12 . . Parts Repaired 1 | . . . . 1 . . Time 38 | . . . . 38 . . Parts Recycled . | . . . . . . . Recycled Matter . | . . . . . . . Retrieved Matter . | . . . . . . . Retrieved Components . | . . . . . . . Parts Scanalyzed . | . . . . . . . Part Schematics Acquired . | . . . . . . . Parts Damaged . | . . . . . . . Bothacking | -11 -10 -9 -8 -7 -7 -6 ------------ Run | Scr Mat Mat Mat Fac Sto Fac Used RIF Installer . | . . . . . . . Robots Hacked . | . . . . . . . Non-combat . | . . . . . . . Combat . | . . . . . . . Robot Hacks Applied . | . . . . . . . Relay Couplers Released . | . . . . . . . Robots Rewired . | . . . . . . . Allies Hacked . | . . . . . . . Hacks Repelled . | . . . . . . . Allies | -11 -10 -9 -8 -7 -7 -6 -------- Run | Scr Mat Mat Mat Fac Sto Fac Total Allies . | . . . . . . . Largest Group . | . . . . . . . Highest-Rated Group . | . . . . . . . Highest-Rated Ally . | . . . . . . . Total Orders . | . . . . . . . Ally Attacks . | . . . . . . . Total Damage . | . . . . . . . Kills . | . . . . . . . Allies Corrupted . | . . . . . . . Allies Melted . | . . . . . . . Intel | -11 -10 -9 -8 -7 -7 -6 ------- Run | Scr Mat Mat Mat Fac Sto Fac Robot Analysis Total 1 | . . . 1 . . . Derelict Logs Recovered . | . . . . . . . Drone Launches . | . . . . . . . Drone Recoveries . | . . . . . . . Exploration | -11 -10 -9 -8 -7 -7 -6 ------------- Run | Scr Mat Mat Mat Fac Sto Fac Turns Passed 1398 | 6 195 265 267 371 182 112 Spaces Moved 1468 | 6 167 144 183 602 213 153 Core . | . . . . . . . Treads . | . . . . . . . Legs 15 | 6 9 . . . . . Wheels 372 | . 158 144 70 . . . Hover 1081 | . . . 113 602 213 153 Flight . | . . . . . . . Fastest Speed 44 | 120 100 100 48 44 44 52 Average Speed 63 | 120 102 100 68 44 55 68 Slowest Speed 180 | 120 120 100 126 44 112 180 Overloaded Moves . | . . . . . . . Propulsion Burnouts . | . . . . . . . Robots Hopped . | . . . . . . . Cave-ins Triggered . | . . . . . . . Exploration Rate (%) 19 | 2 30 20 13 16 46 7 Regions Visited 6 Branch Regions 1 Pre-discovered Areas . | . . . . . . . Known Exits Taken . | . . . . . . . Unknown Exits Taken 6 | 1 1 1 1 1 1 . Scrap Searched . | . . . . . . . Spaces Dug . | . . . . . . . Terrain Destroyed 30 | . 21 . 9 . . . Melee . | . . . . . . . Projectile . | . . . . . . . AOE 30 | . 21 . 9 . . . Actions | -11 -10 -9 -8 -7 -7 -6 --------- Run | Scr Mat Mat Mat Fac Sto Fac Total 1800 | 5 183 224 265 705 261 157 Wait 140 | . . 27 23 78 12 . Move 1462 | 5 166 143 182 601 212 153 Hop . | . . . . . . . Pick Up 31 | . 5 10 7 8 1 . Fast Attach 20 | . 1 6 4 5 . 4 Attach 8 | . . 1 2 2 3 . Detach 3 | . . . . 1 2 . Swap 15 | . 5 2 8 . . . Drop 34 | . 2 13 10 8 1 . Fire 39 | . 4 22 13 . . . Melee 25 | . . . 16 2 7 . Ram . | . . . . . . . Kick . | . . . . . . . Crush . | . . . . . . . Escape Stasis 23 | . . . . . 23 . Rewire . | . . . . . . . Trap . | . . . . . . . Miscellaneous . | . . . . . . . Route ------- -11/Scrapyard -10/Materials -9/Materials -8/Materials -7/Factory -7/Storage -6/Factory History --------- Turn | Location | Event 1 | -11/Scrapyard | Discovered new exit (range 1) 7 | -11/Scrapyard | Entered Materials 183 | -10/Materials | Discovered new exit (range 16) 202 | -10/Materials | Entered another Materials area 202 | -9/Materials | Evolved 2 slots: Propulsion x1, Utility x1 324 | -9/Materials | Build established: Mutant 462 | -9/Materials | Discovered new exit (range 6) 467 | -9/Materials | Entered another Materials area 467 | -8/Materials | Evolved 2 slots: Propulsion x1, Utility x1 533 | -8/Materials | Garrison activated, responded to threat 733 | -8/Materials | Discovered new exit (range 4) 734 | -8/Materials | Entered Factory 734 | -7/Factory | Evolved 2 slots: Power x1, Propulsion x1 874 | -7/Factory | Fabricated Mass Driver (x2) 1051 | -7/Factory | Repaired Airjet 1089 | -7/Factory | Discovered new exit (range 15) 1105 | -7/Factory | Entered Storage 1189 | -7/Storage | Garrison activated, responded to threat 1279 | -7/Storage | Discovered new exit (range 16) 1287 | -7/Storage | Entered Factory 1287 | -6/Factory | Evolved 2 slots: Propulsion x1, Utility x1 1309 | -6/Factory | Lost 6 parts (5n1u) 1399 | -6/Factory | Self-destructed Last Messages --------------- 01325_ Lgt. Nuclear Core severed. 01325_ Com. Wheel severed. 01327_ Acquired Lgt. Nuclear Core. 01329_ Acquired Airjet. 01337_ Acquired Adv. Signal Interpreter. 01342_ Connecting with Terminal... >>Prototypes Downloading prototype IDs... Cld. Gravmag System Imp. Energy Well Rocket Array 01350_ C-30 ARC bursts open, deploying its payload. 01350_ G-67 Veteran unfolds itself. 01350_ G-50 Soldier unfolds itself. 01355_ Gravmag System destroyed. 01395_ Penetrated by Slug. 01395_ Airjet destroyed. 01395_ Critical hit. 01395_ Imp. Cooling System destroyed. 01398_ Airjet destroyed. Map ----- +----------------------------------------------------+ | ?????????????????????????????????????????????????? | | ?????????????????????????????????????????????????? | | ?????????????????????????????????????????????????? | | ?????????????????????????????????????????????????? | | ?????????????????????????????????????????????????? | | ?????????????????????????????????????????????????? | | ?????????????????????????????????????????????????? | | ?????????????????????????????????????????????????? | | ?????????????????????????????????????????????????? | | ?????????????????????????????????????????????????? | | ?????????????????????????????????????????????????? | | ?????????????????????????????????????????????????? | | ?????????????????????????????????????????????????? | | ?????????????????????????????????????????????????? | | ?????????????????????????????????????? #?????????? | | ??????????????????????????????#?????"" #?????????? | | ??????????????????????????????#! """"" #?????????? | | ??????????????????????????????# """ #?????????? | | ??????????????????????????????#! #?????????? | | ??????????????????????????????# """"" #?????????? | | ??????????????????????????????#! """"" #?????????? | | ??????????????????????????????? """ #?????????? | | ????????????????????????????????? ???????????? | | ????????????????????????????????###+############?? | | ?????????????????# ############## | | ?????????????????# @ h | | ?????????????????#### ###########g g | | ????????????????????????????????# ############## ? | | ????????????????????????????????# #??????????????? | | ????????????????????????????????# #??????????????? | | ?????????????????w?? ?????###/##########?????? | | ???????????????????? #???# #?????? | | ###????????????????? ????# ! #?????? | | ?????????????????? ?????# [ #?????? | | ????###########????# #?????# #?????? | | ???# """T""" #????# #?????# """" """" #?????? | | ""???# #????# #?????# """" """" #?????? | | """??# #????# #?????# """" """" ??????? | | """ # """ """ ###### #?????# """" """" #?????? | | # """ """ # #?????# """" """" #?????? | | """ # """ """ # #?????# """" """" #?????? | | """ # + #?????# """" """" #?????? | | """ # # #?????# #?????? | | #+######### #############+#######????? | | # #??????# | | ###### ######## | | | | | | | | ###+#######+#### | +----------------------------------------------------+ Best States ------------- Heat Dissipation 64 Energy Generation 23 Energy Capacity 280 Matter Stores 300 Matter Capacity 300 Sight Range 16 Robot Scan Range 16 Terrain Scan Density 10 Armor Coverage 225 Resistance: KI 20 Resistance: TH 20 Resistance: EX 20 Resistance: EM 20 Resistance: I 20 Resistance: S 20 Resistance: P 20 Evasion (%) 56 Targeting Accuracy 8 Item Schematics ----------------- Energy Well | -7/Factory | Hacked Lgt. Fission Core | -6/Factory | Hacked Robot Schematics ------------------ None Fabricated ------------ Mass Driver | x2 | -7/Factory | Preloaded Alien Tech Used ----------------- None Achievements -------------- None Challenges ------------ None Game ------ Seed GaussBarrageThrusters Manual? 0 Play Time 00:29:19 Cumulative 123.4 hours Start 2019.11.19 @ 13:30:36 End 2019.11.19 @ 14:10:55 Sessions 3 Manual Loads 0 Difficulty Adventurer Special Mode None Game No. 44 Rogue 17 Adventurer 26 Explorer 1 Win Type - Total 4 Types 3/0/0/1/0/0/0 Lore% 60 Gallery% 70 Achievement% 55 Wizard Run 0 Options --------- ASCII 0 Keyboard 0 Movement Numpad Keybinds 0 Fullscreen 0 Font 20/Terminus Map View 76x50 Tactical HUD 1 Map Filters NONE Filters NONE Steam 1 RUN: c29cc44c-a305-4ed5-8553-89a185fbc304